bitfinex/quotes_BTCUSD_20241206
["timestamp","ask_amount","ask_price","bid_price","bid_amount"]
[1733513425637,0.22832951,101330.0,101310.0,0.15057763]
[1733513425865,0.22832951,101330.0,101310.0,0.19059824]
[1733513426099,0.0012337,101320.0,101310.0,0.04059824]
[1733513426580,0.18086321,101320.0,101310.0,0.04059824]
[1733513427474,0.22856321,101320.0,101310.0,0.04059824]
[1733513427698,0.22732951,101320.0,101310.0,0.04059824]
[1733513428386,0.22732951,101320.0,101310.0,0.00057763]
[1733513428608,0.27832951,101320.0,101310.0,0.00057763]
[1733513429343,0.27694359,101320.0,101310.0,0.00057763]
[1733513429566,0.28594359,101320.0,101310.0,0.00057763]
[1733513430012,0.27694359,101320.0,101310.0,0.00057763]
[1733513430230,0.27994359,101320.0,101310.0,0.00057763]
[1733513430662,0.27694359,101320.0,101310.0,0.00057763]
[1733513431114,0.28194359,101320.0,101310.0,0.00231603]
[1733513431337,0.33194359,101320.0,101310.0,0.00231603]
[1733513431570,0.34094359,101320.0,101310.0,0.00231603]
[1733513432748,0.34994359,101320.0,101310.0,0.00231603]
[1733513437242,0.49733759,101320.0,101310.0,0.00231603]
[1733513438147,0.29994359,101320.0,101310.0,0.00231603]
[1733513438814,0.49733759,101320.0,101310.0,0.00231603]
[1733513441119,0.50769603,101320.0,101310.0,0.00231603]
[1733513441360,0.44733759,101320.0,101310.0,0.00231603]
[1733513442047,0.45633759,101320.0,101310.0,0.00231603]
[1733513442497,0.45720709,101320.0,101310.0,0.00231603]
[1733513443173,0.46520709,101320.0,101310.0,0.00231603]
[1733513443605,0.0769,101290.0,101270.0,0.0167469]
[1733513443824,0.10126381,101280.0,101270.0,0.0167469]
[1733513444050,0.10126381,101280.0,101270.0,0.05687704]
[1733513444348,0.10126392,101280.0,101270.0,0.05687704]
[1733513445235,0.10126392,101280.0,101270.0,0.05704999]
[1733513445638,0.00123431,101290.0,101280.0,0.15]
[1733513445849,0.10126382,101290.0,101280.0,0.15]
[1733513447138,0.10326382,101290.0,101280.0,0.15]
[1733513447349,0.10626382,101290.0,101280.0,0.15]
[1733513448182,0.06626382,101290.0,101280.0,0.15]
[1733513448421,0.06731875,101290.0,101280.0,0.15]
[1733513452123,0.005,101290.0,101280.0,0.15]
[1733513453109,0.08224643,101300.0,101280.0,0.15]
[1733513453318,0.18227594,101300.0,101280.0,0.15]
[1733513455113,0.00105493,101290.0,101280.0,0.15]
[1733513455334,0.00192483,101290.0,101280.0,0.15]
[1733513457398,0.0008699,101290.0,101280.0,0.15]
[1733513458572,0.00052661,101290.0,101280.0,5.2045323]
[1733513458811,0.00052661,101290.0,101280.0,5.72764097]
[1733513459244,0.00052661,101290.0,101280.0,3.83669597]
[1733513459717,0.00052661,101290.0,101280.0,2.91092951]
[1733513459928,0.08512123,101320.0,101290.0,0.023]
[1733513460164,0.18515074,101320.0,101300.0,0.15]
[1733513460617,0.18409581,101320.0,101300.0,0.15]
[1733513461117,0.18515074,101320.0,101290.0,0.56106365]
[1733513461336,0.18409581,101320.0,101290.0,0.56106365]
[1733513461772,0.0840663,101320.0,101290.0,0.66109316]
[1733513461983,0.0018663,101320.0,101310.0,0.15]
[1733513462426,0.0008695,101320.0,101310.0,0.15]
[1733513463374,0.00144499,101320.0,101310.0,0.15]
[1733513463609,0.00344499,101320.0,101310.0,0.15]
[1733513464039,0.00444499,101320.0,101310.0,0.15]
[1733513464503,0.00344499,101320.0,101310.0,0.17398698]
[1733513464727,0.00644499,101320.0,101310.0,0.173]
[1733513465389,0.00644499,101320.0,101310.0,0.15]
[1733513465605,0.10752943,101320.0,101310.0,0.15]
[1733513465838,0.10552943,101320.0,101300.0,0.15]
[1733513466084,0.10552943,101320.0,101290.0,0.57812029]
[1733513466757,0.10652793,101320.0,101290.0,0.57812029]
[1733513466998,0.10352793,101320.0,101290.0,0.57812029]
[1733513467252,0.18012793,101320.0,101290.0,0.57812029]
[1733513467478,0.18012793,101320.0,101310.0,0.001]
[1733513467912,0.17912943,101320.0,101290.0,0.57812029]
[1733513468170,0.10002951,101310.0,101290.0,0.19008587]
[1733513468405,0.14722951,101310.0,101290.0,0.04008587]
[1733513468646,0.14828444,101310.0,101290.0,0.04008587]
[1733513468896,0.14828444,101310.0,101290.0,0.024]
[1733513469362,0.08025493,101300.0,101290.0,0.001]
[1733513469594,0.18028444,101300.0,101290.0,0.001]
[1733513470057,0.18028444,101300.0,101280.0,0.38803442]
[1733513470271,0.18028444,101300.0,101280.0,0.42718532]
[1733513470486,0.18028444,101300.0,101290.0,0.001]
[1733513470980,0.18028444,101300.0,101280.0,0.0391509]
[1733513471239,0.22642951,101290.0,101270.0,0.0167469]
[1733513472565,0.10002951,101290.0,101270.0,0.01773426]
[1733513472789,0.07773553,101300.0,101270.0,0.20832659]
[1733513473009,0.17671011,101300.0,101280.0,0.00098725]
[1733513473225,0.17971011,101300.0,101280.0,0.00098725]
[1733513473460,0.17971011,101300.0,101270.0,0.59537365]
[1733513473933,0.10002951,101290.0,101270.0,0.59637365]
[1733513474163,0.10002951,101290.0,101270.0,0.20833923]
[1733513474382,0.10108444,101290.0,101270.0,0.20833923]
[1733513474595,0.10108444,101290.0,101270.0,0.20733923]
[1733513474865,0.00105493,101280.0,101270.0,0.20733923]
[1733513475106,0.00105493,101280.0,101270.0,0.20833923]
[1733513476010,0.22738444,101280.0,101270.0,0.05833923]
[1733513476235,0.22632951,101280.0,101270.0,0.05751218]
[1733513476697,0.22632951,101280.0,101270.0,0.05851218]
[1733513476926,0.22632951,101280.0,101270.0,0.05751218]
[1733513477139,0.22932951,101280.0,101270.0,0.05751218]
[1733513477587,0.22632951,101280.0,101270.0,0.05751218]
[1733513477827,0.007,101280.0,101270.0,0.05751218]
[1733513478051,0.00805493,101280.0,101270.0,0.05751218]
[1733513478741,0.01205493,101280.0,101270.0,0.05751218]
[1733513479176,0.00805493,101280.0,101270.0,0.05751218]
[1733513479392,0.00105493,101280.0,101270.0,0.05751218]
[1733513479904,0.00405493,101280.0,101270.0,0.05751218]
[1733513480133,0.00105493,101280.0,101270.0,0.05751218]
[1733513480359,0.00105493,101280.0,101270.0,0.05851218]
[1733513482342,0.08122363,101290.0,101270.0,0.05851218]
[1733513482554,0.18125314,101290.0,101270.0,0.05851218]
[1733513482755,0.00105493,101280.0,101270.0,0.05851218]
[1733513483439,0.18125314,101290.0,101270.0,0.05851218]
[1733513485194,0.18125314,101290.0,101270.0,0.20851218]
[1733513485656,0.18125314,101290.0,101270.0,0.20751218]
[1733513485847,0.18125314,101290.0,101270.0,0.20851218]
[1733513486621,0.18125314,101290.0,101270.0,0.05851218]
[1733513486832,0.0008687,101290.0,101280.0,0.00098733]
[1733513487045,7e-07,101290.0,101280.0,0.023]
[1733513487274,7e-07,101290.0,101280.0,0.56202167]
[1733513487908,7e-07,101290.0,101280.0,0.56103442]
[1733513488123,0.0020007,101290.0,101280.0,0.56103442]
[1733513488594,7e-07,101290.0,101280.0,0.56103442]
[1733513489254,0.1233806,101300.0,101280.0,0.56103442]
[1733513489485,0.22341011,101300.0,101280.0,0.56303442]
[1733513489925,0.0008687,101290.0,101280.0,0.56303442]
[1733513490383,0.0008687,101290.0,101280.0,0.41144439]
[1733513490592,0.0008687,101290.0,101280.0,0.56344439]
[1733513491025,0.0008687,101290.0,101280.0,0.175]
[1733513491244,0.0008687,101290.0,101280.0,0.56443161]
[1733513491477,7e-07,101290.0,101280.0,0.56344439]
[1733513491700,0.001,101300.0,101290.0,0.15]
[1733513491925,0.001,101300.0,101290.0,0.17398712]
[1733513492156,0.0795995,101310.0,101290.0,0.173]
[1733513492411,0.17962901,101310.0,101290.0,0.173]
[1733513492637,0.17962901,101310.0,101290.0,0.15098712]
[1733513492638,0.0795995,101310.0,101290.0,0.15098712]
[1733513492882,0.0795995,101310.0,101290.0,0.53943151]
[1733513492883,0.0009995,101310.0,101290.0,0.53943151]
[1733513493092,5e-07,101310.0,101290.0,0.53943151]
[1733513493326,5e-07,101310.0,101290.0,0.54043151]
[1733513493555,5e-07,101310.0,101290.0,0.53943151]
[1733513493980,5e-07,101310.0,101290.0,0.54143151]
[1733513494736,0.10003001,101310.0,101290.0,0.54044439]
[1733513494948,0.0757,101300.0,101290.0,0.152]
[1733513495186,0.0757,101300.0,101290.0,0.15]
[1733513495411,0.0757,101300.0,101290.0,0.155]
[1733513495901,0.0757,101300.0,101270.0,0.22151218]
[1733513496104,0.0757,101300.0,101290.0,0.005]
[1733513496316,0.0757,101300.0,101280.0,0.15]
[1733513496721,0.0757,101300.0,101290.0,0.001]
[1733513496974,0.22568444,101300.0,101270.0,0.05751218]
[1733513497444,0.10108444,101290.0,101270.0,0.05751218]
[1733513497657,0.0796,101280.0,101270.0,0.05751218]
[1733513497885,0.129,101280.0,101270.0,0.05751218]
[1733513498126,0.13005493,101280.0,101270.0,0.05751218]
[1733513498349,0.23008444,101280.0,101270.0,0.06251218]
[1733513498559,0.22902951,101280.0,101270.0,0.06251218]
[1733513498780,0.22902951,101280.0,101270.0,0.05751218]
[1733513499035,0.23002951,101280.0,101270.0,0.06251218]
[1733513499728,0.22902951,101280.0,101270.0,0.05751218]
[1733513500152,0.22902951,101280.0,101270.0,0.05851218]
[1733513500580,0.23002951,101280.0,101270.0,0.05851218]
[1733513501080,0.22902951,101280.0,101270.0,0.05851218]
[1733513502417,0.0796,101280.0,101270.0,0.05851218]
[1733513503328,0.17962951,101280.0,101270.0,0.05851218]
[1733513503539,0.1305,101290.0,101270.0,0.05851218]
[1733513503759,0.0831867,101300.0,101270.0,0.20851218]
[1733513503985,0.0831867,101300.0,101280.0,0.00098726]
[1733513504214,0.0009867,101300.0,101280.0,0.00098726]
[1733513504440,0.0009867,101300.0,101280.0,0.22358726]
[1733513504656,0.00185576,101310.0,101280.0,0.21940136]
[1733513504887,0.10188527,101310.0,101280.0,0.21940136]
[1733513505555,0.003,101300.0,101280.0,0.21940136]
[1733513506004,0.10188527,101310.0,101280.0,0.21940136]
[1733513506216,0.10288527,101310.0,101280.0,0.154]
[1733513506402,0.0822,101300.0,101280.0,0.154]
[1733513507306,0.0822,101300.0,101280.0,0.15]
[1733513507768,0.0832,101300.0,101280.0,0.155]
[1733513509357,0.0832,101300.0,101290.0,0.0009872]
[1733513509358,0.001,101300.0,101290.0,0.0009872]
[1733513509992,0.001,101300.0,101280.0,0.54403392]
[1733513510235,0.001,101300.0,101280.0,0.54441239]
[1733513510465,0.14888527,101310.0,101280.0,0.53941239]
[1733513510916,0.14888527,101310.0,101290.0,0.001]
[1733513511141,0.14888527,101310.0,101280.0,0.53941239]
[1733513511386,0.14888527,101310.0,101280.0,0.54441239]
[1733513511599,0.001,101300.0,101280.0,0.54441239]
[1733513511886,0.0008685,101310.0,101290.0,0.00098715]
[1733513512093,0.0018685,101310.0,101290.0,5.47137405]
[1733513512354,0.0018685,101310.0,101300.0,5.34735739]
[1733513512583,0.0018685,101310.0,101300.0,5.5397869]
[1733513512812,0.0018685,101310.0,101300.0,5.15037451]
[1733513513682,0.0018685,101310.0,101300.0,5.30037451]
[1733513513893,0.0018685,101310.0,101300.0,0.34242951]
[1733513514226,0.0008695,101320.0,101310.0,0.15]
[1733513514441,0.0008695,101320.0,101310.0,5.49797203]
[1733513514691,0.0008695,101320.0,101310.0,5.49698101]
[1733513515531,0.00144499,101320.0,101310.0,5.49698101]
[1733513516929,0.00144499,101320.0,101310.0,2.10603601]
[1733513518219,0.00144499,101320.0,101310.0,1.717]
[1733513518395,9.9e-07,101320.0,101310.0,1.7577545]
[1733513518632,9.9e-07,101320.0,101310.0,0.1917545]
[1733513518866,9.9e-07,101320.0,101310.0,0.19274135]
[1733513520410,9.9e-07,101320.0,101310.0,0.31577086]
[1733513520638,9.9e-07,101320.0,101310.0,0.31478401]
[1733513521697,9.9e-07,101320.0,101310.0,0.2147545]
[1733513521946,9.9e-07,101320.0,101310.0,0.1917545]
[1733513522157,9.9e-07,101320.0,101310.0,0.2147545]
[1733513523040,9.9e-07,101320.0,101310.0,0.0647545]
[1733513524817,9.9e-07,101320.0,101310.0,0.0664915]
[1733513525031,0.00086949,101320.0,101310.0,0.0664915]
[1733513525243,4.9e-07,101320.0,101310.0,0.06747837]
[1733513525702,4.9e-07,101320.0,101310.0,0.70654389]
[1733513525950,4.9e-07,101320.0,101310.0,0.77495702]
[1733513526397,0.08013976,101340.0,101320.0,4.889]
[1733513526624,0.08013976,101340.0,101330.0,0.00098675]
[1733513526845,0.08013976,101340.0,101320.0,0.17398675]
[1733513527073,0.07915206,101340.0,101320.0,0.17398675]
[1733513527723,0.08115206,101340.0,101320.0,0.17398675]
[1733513527957,0.002,101340.0,101330.0,0.27401626]
[1733513528120,0.002,101340.0,101330.0,0.27302951]
[1733513528275,0.006,101340.0,101330.0,3.46202951]
[1733513528498,0.006,101340.0,101330.0,2.53502951]
[1733513528923,0.006,101340.0,101330.0,2.435]
[1733513529144,0.004,101340.0,101330.0,0.173]
[1733513529350,0.0855,101340.0,101330.0,2.496]
[1733513529571,0.0815,101340.0,101330.0,2.387]
[1733513529769,0.0815,101340.0,101330.0,2.391]
[1733513530186,0.0815,101340.0,101330.0,2.389]
[1733513530387,0.0815,101340.0,101330.0,1.258]
[1733513531002,0.0815,101340.0,101330.0,1.254]
[1733513531432,0.0815,101340.0,101330.0,1.258]
[1733513532555,0.07343,101340.0,101330.0,1.258]
[1733513532973,0.07340259,101340.0,101330.0,1.258]
[1733513534273,0.07340259,101340.0,101330.0,1.29848041]
[1733513535185,0.07340259,101340.0,101330.0,0.21948041]
[1733513536258,0.124594,101350.0,101340.0,0.173]
[1733513536475,0.12476661,101350.0,101340.0,0.173]
[1733513536695,0.07597261,101350.0,101340.0,0.17398665]
[1733513536909,0.00017261,101350.0,101340.0,4.42101616]
[1733513537118,0.00017261,101350.0,101340.0,4.80843029]
[1733513537575,0.00017261,101350.0,101340.0,4.80774684]
[1733513538198,0.00017261,101350.0,101340.0,4.98674684]
[1733513538821,0.00117261,101350.0,101340.0,4.99474684]
[1733513540131,0.00117261,101350.0,101340.0,4.99874684]
[1733513540558,0.00117261,101350.0,101340.0,4.94874684]
[1733513540778,0.00117261,101350.0,101340.0,4.73265572]
[1733513541612,0.00117261,101350.0,101340.0,4.55365572]
[1733513541851,0.00117261,101350.0,101340.0,4.60365572]
[1733513542946,0.00117261,101350.0,101340.0,4.39365572]
[1733513543888,0.00117261,101350.0,101340.0,0.33502951]
[1733513544130,0.00117261,101350.0,101340.0,5.20460151]
[1733513548529,0.00117261,101350.0,101340.0,5.15460151]
[1733513548751,0.00204091,101350.0,101340.0,5.20460151]
[1733513550672,0.00204091,101350.0,101340.0,5.59231884]
[1733513551947,0.00204091,101350.0,101340.0,5.54231884]
[1733513552152,0.08404091,101350.0,101340.0,5.31052886]
[1733513552384,0.08404091,101350.0,101340.0,5.29952886]
[1733513552812,0.08404091,101350.0,101340.0,0.334]
[1733513554175,0.08404091,101350.0,101340.0,0.72149935]
[1733513556995,0.22987042,101350.0,101340.0,0.39949935]
[1733513557210,0.12984091,101350.0,101340.0,0.012]
[1733513558104,0.12884091,101350.0,101340.0,0.004]
[1733513558323,0.12884091,101350.0,101340.0,0.154]
[1733513558759,0.12884091,101350.0,101340.0,0.15]
[1733513561224,0.12884091,101350.0,101340.0,0.1517366]
[1733513563385,0.08304091,101350.0,101340.0,0.56406342]
[1733513563611,0.08304091,101350.0,101340.0,3.31507677]
[1733513563818,0.08304091,101350.0,101340.0,1.87307677]
[1733513564501,0.08304091,101350.0,101340.0,1.20107677]
[1733513565171,0.08304091,101350.0,101340.0,1.01507677]
[1733513565383,0.08304091,101350.0,101340.0,0.79007677]
[1733513566045,0.08304091,101350.0,101340.0,0.72807677]
[1733513566267,0.08304091,101350.0,101340.0,0.1517366]
[1733513566483,0.13004091,101350.0,101340.0,0.1517366]
[1733513566948,0.13004091,101350.0,101340.0,0.0017366]
[1733513567156,0.13004091,101350.0,101340.0,0.1517366]
[1733513568484,0.13004091,101350.0,101340.0,0.15272326]
[1733513568731,0.00104091,101350.0,101340.0,5.45182477]
[1733513568942,0.001864,101370.0,101350.0,0.073]
[1733513569187,0.001864,101370.0,101360.0,5.53250288]
[1733513569370,0.0008692,101370.0,101360.0,5.14260151]
[1733513569643,0.0008692,101370.0,101360.0,5.43903732]
[1733513570086,0.0008692,101370.0,101360.0,5.14260151]
[1733513570337,0.0835692,101380.0,101370.0,0.173]
[1733513570570,0.0008692,101380.0,101370.0,5.14358778]
[1733513570810,0.0008692,101380.0,101370.0,5.14260151]
[1733513571709,0.0009894,101390.0,101370.0,5.24260151]
[1733513571899,0.0009894,101390.0,101380.0,5.14358765]
[1733513572192,0.0008699,101400.0,101390.0,0.173]
[1733513572394,0.001856,101400.0,101390.0,5.53110736]
[1733513572615,0.0008699,101400.0,101390.0,5.53110736]
[1733513573286,0.00104308,101400.0,101390.0,5.53110736]
[1733513573724,0.00104308,101400.0,101390.0,5.14260151]
[1733513574605,0.00104308,101400.0,101390.0,5.53065339]
[1733513575756,0.00104308,101400.0,101390.0,5.53265339]
[1733513576415,0.00104308,101400.0,101390.0,5.56701519]
[1733513576632,0.00104308,101400.0,101390.0,5.57101519]
[1733513576840,0.00104308,101400.0,101390.0,5.5706742]
[1733513577271,0.00104308,101400.0,101390.0,5.5686742]
[1733513577492,0.00104308,101400.0,101390.0,5.5706742]
[1733513580369,0.00104308,101400.0,101390.0,0.7011022]
[1733513580576,0.00104308,101400.0,101390.0,5.5706742]
[1733513583427,0.07864308,101400.0,101390.0,5.5706742]
[1733513587673,0.07864308,101400.0,101390.0,5.18296331]
[1733513588748,0.07864308,101400.0,101390.0,3.4603618]
[1733513588964,0.07864308,101400.0,101390.0,1.8423618]
[1733513589176,0.07864308,101400.0,101390.0,0.9783618]
[1733513589830,0.07864308,101400.0,101390.0,0.0343618]
[1733513590043,0.12764308,101400.0,101390.0,0.0343618]
[1733513590248,0.0809,101390.0,101370.0,0.38771089]
[1733513590467,0.0809,101390.0,101380.0,1.154]
[1733513591151,0.0809,101390.0,101370.0,0.10002951]
[1733513591597,0.0809,101390.0,101370.0,0.10402951]
[1733513591826,0.0809,101390.0,101370.0,0.13802966]
[1733513592333,0.0809,101390.0,101360.0,0.023]
[1733513592552,0.0809,101390.0,101370.0,1.721]
[1733513592758,0.0778,101370.0,101340.0,0.1265366]
[1733513592970,0.0778,101370.0,101350.0,4.94402951]
[1733513593193,0.0778,101370.0,101350.0,0.10002951]
[1733513593410,0.0778,101370.0,101340.0,0.05272299]
[1733513593644,0.0778,101370.0,101360.0,0.004]
[1733513594102,0.0778,101370.0,101350.0,0.00098645]
[1733513594332,0.0788,101370.0,101350.0,0.789]
[1733513594563,0.0788,101370.0,101350.0,0.004]
[1733513595043,0.0484,101360.0,101350.0,0.004]
[1733513595261,0.1282,101360.0,101350.0,0.004]
[1733513595728,0.1282,101360.0,101350.0,0.013]
[1733513595957,0.1282,101360.0,101340.0,0.03591003]
[1733513596174,0.1255,101350.0,101340.0,0.03591003]
[1733513596397,0.1255,101350.0,101340.0,0.03608264]
[1733513598317,0.1265,101350.0,101340.0,0.04408264]
[1733513599609,0.001,101350.0,101340.0,3.16411215]
[1733513603637,0.001,101350.0,101340.0,0.79508264]
[1733513603878,0.001,101350.0,101340.0,0.56508264]
[1733513605734,0.001,101350.0,101340.0,0.66511215]
[1733513606612,0.001,101350.0,101340.0,1.05283304]
[1733513608386,0.0797902,101370.0,101350.0,0.173]
[1733513608604,0.0797902,101370.0,101360.0,0.00098635]
[1733513608819,0.1328,101390.0,101370.0,0.173]
[1733513609055,0.1337956,101390.0,101380.0,5.02055823]
[1733513609281,0.0841956,101390.0,101380.0,5.019572]
[1733513609500,0.0832,101390.0,101380.0,5.042572]
[1733513609733,0.0813699,101400.0,101390.0,0.15]
[1733513610424,0.08154308,101400.0,101390.0,0.15]
[1733513610884,0.08154308,101400.0,101380.0,0.17398614]
[1733513611540,0.08154308,101400.0,101390.0,0.00098614]
[1733513612418,0.08154308,101400.0,101390.0,0.00498614]
[1733513612872,0.08154308,101400.0,101380.0,0.17398614]
[1733513613375,0.08154308,101400.0,101390.0,0.001]
[1733513613828,0.08154308,101400.0,101380.0,0.20270933]
[1733513614073,0.08154308,101400.0,101390.0,0.003]
[1733513614294,0.00104308,101400.0,101390.0,5.04355814]
[1733513614542,0.00104308,101400.0,101390.0,5.042572]
[1733513614759,0.00104308,101400.0,101390.0,5.045572]
[1733513615198,0.08184308,101400.0,101390.0,3.844]
[1733513615408,0.00104308,101400.0,101390.0,3.844]
[1733513615869,0.0009982,101410.0,101400.0,0.15]
[1733513616078,0.0009982,101410.0,101400.0,5.14358738]
[1733513616303,0.0008687,101420.0,101410.0,0.023]
[1733513616525,0.0008687,101420.0,101410.0,5.042572]
[1733513618475,0.0008687,101420.0,101410.0,5.045572]
[1733513618920,0.0008687,101420.0,101410.0,5.046572]
[1733513620966,7e-07,101420.0,101410.0,5.046572]
[1733513621184,7e-07,101420.0,101410.0,0.177]
[1733513621417,7e-07,101420.0,101410.0,0.17798587]
[1733513621643,7e-07,101420.0,101410.0,0.20759481]
[1733513621850,7e-07,101420.0,101410.0,0.20660894]
[1733513628287,7e-07,101420.0,101410.0,0.20952711]
[1733513636527,7e-07,101420.0,101410.0,0.00382049]
[1733513636744,7e-07,101420.0,101410.0,0.15480636]
[1733513636980,7e-07,101420.0,101410.0,0.15390404]
[1733513639451,7e-07,101420.0,101410.0,0.25393355]
[1733513639665,0.001828,101430.0,101420.0,5.019572]
[1733513640127,0.0008296,101430.0,101420.0,5.019572]
[1733513641068,0.0008296,101430.0,101420.0,5.022572]
[1733513641280,0.0018296,101430.0,101420.0,5.029572]
[1733513645242,0.0018296,101430.0,101420.0,3.553]
[1733513645463,0.1335296,101430.0,101420.0,0.01]
[1733513645667,0.23454637,101430.0,101420.0,0.01]
[1733513645889,0.23355911,101430.0,101420.0,0.01]
[1733513646549,0.23255911,101430.0,101420.0,0.003]
[1733513647176,0.23175911,101430.0,101420.0,0.03159052]
[1733513647492,0.23175911,101430.0,101420.0,0.004]
[1733513647967,0.23175911,101430.0,101420.0,0.003]
[1733513648213,0.23375911,101430.0,101420.0,0.003]
[1733513648864,0.23375911,101430.0,101410.0,0.54199048]
[1733513648865,0.0755,101420.0,101410.0,0.54199048]
[1733513649349,0.0755,101420.0,101410.0,0.15465457]
[1733513649552,0.0755,101420.0,101410.0,0.54199048]
[1733513650662,0.0755,101420.0,101410.0,0.54499048]
[1733513650868,0.0755,101420.0,101410.0,0.57526022]
[1733513651097,0.0755,101420.0,101410.0,0.18792431]
[1733513653517,0.0755,101420.0,101410.0,0.57618976]
[1733513654568,0.0755,101420.0,101410.0,0.57327159]
[1733513655099,0.0755,101420.0,101410.0,0.18500614]
[1733513655723,0.0755,101420.0,101410.0,0.57327159]
[1733513656820,0.1292296,101430.0,101410.0,0.18500614]
[1733513656972,0.1292296,101430.0,101420.0,0.54048356]
[1733513657184,0.1292296,101430.0,101420.0,5.40906971]
[1733513657407,0.0806296,101430.0,101420.0,5.40906971]
[1733513657657,0.02919992,101430.0,101420.0,5.40906971]
[1733513657839,0.02919992,101430.0,101420.0,4.70049771]
[1733513658315,0.03019992,101430.0,101420.0,4.64049771]
[1733513659417,0.03019992,101430.0,101420.0,1.86649771]
[1733513659836,0.03219992,101430.0,101420.0,1.86649771]
[1733513661537,0.03219992,101430.0,101420.0,0.92849771]
[1733513661769,0.03219992,101430.0,101420.0,0.77749771]
[1733513662846,0.03219992,101430.0,101420.0,0.72849771]
[1733513663268,0.003,101430.0,101420.0,0.72849771]
[1733513663498,0.0038681,101430.0,101420.0,0.43902951]
[1733513663711,0.0038681,101430.0,101420.0,0.54122951]
[1733513663941,0.0038681,101430.0,101420.0,0.83705081]
[1733513664434,0.0018681,101430.0,101420.0,0.40322316]
[1733513664653,0.0008681,101430.0,101420.0,0.40322316]
[1733513664858,0.0008681,101430.0,101420.0,0.40422316]
[1733513665777,0.0008681,101430.0,101420.0,0.79379855]
[1733513665974,5e-07,101440.0,101420.0,0.80072813]
[1733513666304,5.6e-07,101440.0,101430.0,4.585561]
[1733513666508,5.6e-07,101440.0,101430.0,0.15]
[1733513667462,5.6e-07,101440.0,101430.0,0.153]
[1733513667917,5.6e-07,101440.0,101430.0,0.154]
[1733513669339,0.12131558,101450.0,101440.0,4.027]
[1733513669522,0.0789683,101460.0,101450.0,0.15]
[1733513669716,0.07914138,101460.0,101450.0,0.15]
[1733513670376,0.07914138,101460.0,101450.0,4.585561]
[1733513671228,0.08314138,101460.0,101450.0,2.935]
[1733513671432,0.08314138,101460.0,101450.0,2.719]
[1733513671648,0.01004138,101460.0,101450.0,2.719]
[1733513672106,0.01004138,101460.0,101450.0,0.15]
[1733513672326,0.01004138,101460.0,101450.0,0.10002951]
[1733513672532,0.01004138,101460.0,101450.0,4.68559051]
[1733513672533,0.00604138,101460.0,101450.0,4.68559051]
[1733513672742,0.00753189,101460.0,101450.0,4.70859051]
[1733513672942,0.00253189,101460.0,101450.0,4.70859051]
[1733513673374,0.00353189,101460.0,101450.0,4.70859051]
[1733513674246,0.00353189,101460.0,101450.0,5.09804291]
[1733513674476,0.00353189,101460.0,101450.0,4.70859051]
[1733513675936,0.00353189,101460.0,101450.0,4.7444512]
[1733513677253,0.00353189,101460.0,101450.0,4.7214512]
[1733513677473,0.00353189,101460.0,101450.0,5.10955379]
[1733513679728,0.00353189,101460.0,101450.0,5.20925379]
[1733513679940,0.00353189,101460.0,101450.0,4.8211512]
[1733513681179,0.00253189,101460.0,101450.0,4.8211512]
[1733513681394,0.00253189,101460.0,101450.0,5.20875348]
[1733513682219,0.00053189,101460.0,101450.0,5.20875348]
[1733513682431,0.00053189,101460.0,101450.0,4.82717083]
[1733513682646,0.00053189,101460.0,101450.0,4.82817083]
[1733513683216,0.00053189,101460.0,101450.0,5.21589062]
[1733513683592,0.00032933,101460.0,101450.0,5.21589062]
[1733513684185,0.00032933,101460.0,101450.0,0.78032962]
[1733513684404,0.00032933,101460.0,101450.0,5.21589062]
[1733513685470,0.00032933,101460.0,101450.0,5.11619062]
[1733513685680,0.00032933,101460.0,101450.0,4.46562962]
[1733513685888,3.3e-07,101460.0,101450.0,4.46511182]
[1733513686095,3.3e-07,101460.0,101450.0,0.68011182]
[1733513686307,3.3e-07,101460.0,101450.0,0.68184762]
[1733513686501,2.3e-07,101460.0,101450.0,0.68184762]
[1733513687719,2.3e-07,101460.0,101450.0,0.58181811]
[1733513687921,0.04640023,101460.0,101450.0,0.19461612]
[1733513688172,0.04640023,101460.0,101450.0,0.37961612]
[1733513688350,0.22142974,101460.0,101450.0,0.04159649]
[1733513688985,0.22142974,101460.0,101450.0,0.04059649]
[1733513689206,0.22142974,101460.0,101450.0,0.03759649]
[1733513689424,0.22342974,101460.0,101450.0,0.03759649]
[1733513689630,0.22442974,101460.0,101450.0,0.03759649]
[1733513691159,0.22442974,101460.0,101450.0,0.0017358]
[1733513691756,0.22342974,101460.0,101450.0,0.0017358]
[1733513691963,0.27142974,101460.0,101450.0,0.0017358]
[1733513692174,0.28142974,101460.0,101450.0,0.0037358]
[1733513693352,0.33142974,101460.0,101450.0,0.0037358]
[1733513693761,0.28142974,101460.0,101450.0,0.0037358]
[1733513694375,0.23142974,101460.0,101450.0,0.0037358]
[1733513694577,0.28142974,101460.0,101450.0,0.0037358]
[1733513702427,0.25442974,101460.0,101450.0,0.0037358]
[1733513703529,0.24442974,101460.0,101450.0,0.0017358]
[1733513703755,0.25142974,101460.0,101450.0,0.0017358]
[1733513705376,0.26042974,101460.0,101450.0,0.0027358]
[1733513705817,0.1785,101440.0,101430.0,0.03694545]
[1733513706036,0.1285,101430.0,101410.0,0.0017364]
[1733513706249,0.10126206,101420.0,101410.0,0.0017364]
[1733513706880,0.18436206,101420.0,101410.0,0.0017364]
[1733513707333,0.28376206,101420.0,101410.0,0.03792383]
[1733513707550,0.28252951,101420.0,101410.0,0.00231346]
[1733513708394,0.23252951,101420.0,101410.0,0.00231346]
[1733513708785,0.23552951,101420.0,101410.0,0.00231346]
[1733513709013,0.23852951,101420.0,101410.0,0.00231346]
[1733513712145,0.23852951,101420.0,101410.0,0.03814385]
[1733513713003,0.23852951,101420.0,101390.0,0.03347912]
[1733513713217,0.23852951,101420.0,101390.0,0.00017308]
[1733513713650,0.00123257,101410.0,101390.0,0.00017308]
[1733513713863,0.10126208,101410.0,101390.0,0.00017308]
[1733513714633,0.10002951,101410.0,101390.0,0.00017308]
[1733513715271,0.1012622,101410.0,101390.0,0.00017308]
[1733513716040,0.1012622,101410.0,101390.0,0.00517308]
[1733513716278,0.1012622,101410.0,101390.0,0.00017308]
[1733513716709,0.1022622,101410.0,101390.0,0.00517308]
[1733513718079,0.0796,101400.0,101390.0,0.00517308]
[1733513718929,0.0796,101400.0,101390.0,0.00017308]
[1733513719469,0.0606,101400.0,101390.0,0.00517308]
[1733513720515,0.001,101400.0,101390.0,4.51953408]
[1733513720733,0.0971,101440.0,101410.0,0.0788]
[1733513720939,0.10002951,101430.0,101410.0,0.0788]
[1733513722098,0.10002951,101430.0,101410.0,0.0808]